bitfinex/quotes_ETHUSD_20250314
["timestamp","ask_amount","ask_price","bid_price","bid_amount"]
[1741916608349,5.28551,1892.0,1891.6,5.28636]
[1741916608503,6.1028,1892.1,1891.6,10.57268]
[1741916608703,7.35127016,1892.1,1891.7,5.28619]
[1741916608906,2.06607016,1892.1,1891.8,5.28577]
[1741916609130,2.06607016,1892.1,1891.7,5.28612]
[1741916609131,0.8176,1892.1,1891.7,5.28612]
[1741916609343,0.8176,1892.1,1891.9,5.28549]
[1741916609719,0.8176,1892.1,1892.0,5.28541]
[1741916610047,0.8176,1892.1,1891.9,5.28549]
[1741916610242,0.8176,1892.1,1892.0,5.28541]
[1741916611208,0.8176,1892.6,1892.0,1.88914381]
[1741916611446,5.28411,1892.5,1892.0,5.28515]
[1741916611610,0.8176,1892.3,1892.0,5.28515]
[1741916612251,0.8176,1892.3,1891.9,5.28557]
[1741916612463,0.8176,1892.3,1892.0,5.28527]
[1741916613161,0.8176,1892.3,1892.1,5.28505]
[1741916613330,0.8176,1892.3,1892.2,5.28485]
[1741916613532,0.7926,1892.5,1892.4,5.28429]
[1741916614162,0.7926,1892.7,1892.4,5.28429]
[1741916614366,0.7926,1892.7,1892.6,5.28373]
[1741916614574,10.79469147,1893.0,1892.6,5.28373]
[1741916614872,1.07946915,1892.9,1892.6,5.28373]
[1741916615373,1.07946915,1892.9,1892.5,5.28383]
[1741916615962,5.28239,1893.1,1892.7,5.28331]
[1741916616135,10.80386147,1893.2,1892.7,10.56651]
[1741916616338,5.52176147,1893.2,1892.2,22.47640873]
[1741916616537,6.05191,1892.9,1892.4,5.28417]
[1741916616798,0.605191,1892.8,1892.4,10.56824]
[1741916617141,5.888421,1892.8,1892.4,5.28407]
[1741916617350,15.89130247,1892.8,1892.4,5.28407]
[1741916617661,0.8008,1892.7,1892.4,5.28407]
[1741916617844,6.08425,1892.7,1892.3,5.2845]
[1741916618036,2.47001325,1892.7,1892.4,5.28423]
[1741916618364,0.8008,1892.7,1892.5,10.5677]
[1741916618733,0.8008,1892.7,1892.6,5.28373]
[1741916620056,0.8181,1893.1,1892.9,5.28262]
[1741916620368,0.8181,1893.1,1893.0,5.28262]
[1741916621355,0.8181,1893.1,1892.9,5.28262]
[1741916621532,1.37185615,1893.1,1892.7,5.28328]
[1741916621739,4.71946147,1893.0,1892.7,5.28328]
[1741916622138,4.71946147,1892.8,1892.4,5.28403]
[1741916622371,4.71946147,1892.6,1892.3,5.28456]
[1741916622577,4.71946147,1892.6,1892.3,10.5689]
[1741916622874,4.71946147,1892.6,1892.0,5.2852]
[1741916622875,4.71946147,1892.6,1892.5,5.28401]
[1741916623081,0.8181,1892.7,1892.6,5.28373]
[1741916624834,4.71946147,1893.0,1892.5,5.28401]
[1741916625077,0.8301,1892.9,1892.8,5.28292]
[1741916627393,0.8301,1892.9,1892.7,5.28336]
[1741916627580,4.71946147,1892.8,1892.5,5.28381]
[1741916627939,4.71946147,1892.8,1892.5,10.56761]
[1741916628280,4.71946147,1892.8,1892.5,5.2838]
[1741916628438,5.80270962,1892.8,1892.5,5.2838]
[1741916628633,4.71946147,1892.8,1892.5,5.2838]
[1741916628988,0.8301,1892.9,1892.6,5.28359]
[1741916629486,0.8107,1892.7,1892.4,5.28402]
[1741916629641,0.8107,1892.7,1892.2,5.28457]
[1741916629977,0.8107,1892.7,1892.3,5.812977]
[1741916630175,0.8107,1892.7,1892.5,5.28395]
[1741916630475,0.8107,1892.7,1892.6,5.28373]
[1741916630775,0.8107,1892.7,1892.5,5.28395]
[1741916630986,0.8107,1892.7,1892.5,10.56776]
[1741916631220,0.8107,1892.7,1892.5,5.28381]
[1741916631892,1.36371615,1892.7,1892.4,5.28417]
[1741916632287,6.64716615,1892.7,1892.3,10.56879]
[1741916632524,5.28379,1892.6,1892.2,5.28462]
[1741916632899,4.71946147,1892.6,1892.3,5.28444]
[1741916633099,0.8107,1892.5,1892.2,5.28462]
[1741916633817,5.28448,1892.4,1891.9,5.28556]
[1741916634018,0.7568,1892.3,1891.9,5.28544]
[1741916634216,6.0414,1892.3,1891.9,5.28544]
[1741916634534,5.28486,1892.2,1891.8,6.35028702]
[1741916634832,10.77532371,1892.3,1891.9,5.28557]
[1741916635044,5.28499,1892.2,1891.7,10.57235]
[1741916635247,5.28499,1892.2,1891.8,5.28592]
[1741916635604,10.57009,1892.2,1891.7,5.28611]
[1741916635845,5.28515,1892.1,1891.7,5.28611]
[1741916636018,0.7835,1892.0,1891.7,5.28611]
[1741916636203,0.7835,1892.0,1891.8,5.28594]
[1741916636530,0.7835,1892.0,1891.4,0.785]
[1741916636700,0.7835,1892.0,1891.8,5.28593]
[1741916636902,0.7835,1892.0,1891.7,5.28609]
[1741916638406,0.7835,1892.0,1891.8,5.28596]
[1741916638682,0.7835,1892.0,1891.9,5.28569]
[1741916638843,0.7835,1892.2,1891.9,5.28549]
[1741916639249,0.7835,1892.2,1891.9,10.57107]
[1741916639449,0.7835,1892.2,1891.9,5.28549]
[1741916640412,0.7835,1892.2,1891.8,5.28583]
[1741916640738,0.7835,1892.2,1891.9,5.28568]
[1741916640917,0.7835,1892.2,1892.0,5.28538]
[1741916641619,0.7835,1892.2,1892.1,5.28513]
[1741916641826,0.7609,1892.4,1892.2,5.28484]
[1741916642173,0.7609,1892.4,1892.1,5.28509]
[1741916642528,0.7609,1892.7,1892.5,5.28393]
[1741916642732,0.7662,1892.9,1892.7,5.28329]
[1741916642931,6.9062,1893.2,1892.5,0.7799]
[1741916643261,0.7662,1893.2,1893.0,5.28245]
[1741916643813,0.7662,1893.2,1892.9,5.28284]
[1741916644053,0.7662,1893.2,1893.0,5.28239]
[1741916644360,0.77130604,1893.2,1893.0,5.28239]
[1741916645823,6.05347604,1893.2,1892.7,5.28345]
[1741916646017,16.66070647,1893.2,1892.7,10.56679]
[1741916646265,10.77313887,1893.2,1892.8,5.28313]
[1741916646945,5.49096887,1893.2,1892.9,5.28277]
[1741916647152,0.00510604,1893.2,1892.9,5.28269]
[1741916647357,0.7997,1893.0,1892.6,5.28373]
[1741916647523,0.00510604,1893.2,1893.0,5.28238]
[1741916647862,0.00510604,1893.2,1892.9,5.28284]
[1741916648162,0.00510604,1893.2,1892.9,5.28289]
[1741916648370,0.00510604,1893.2,1892.9,10.56557]
[1741916648522,0.00510604,1893.2,1893.0,5.28241]
[1741916649021,0.00510604,1893.2,1893.0,11.093091]
[1741916649223,0.00510604,1893.2,1893.1,6.10574]
[1741916649457,6.04e-06,1893.2,1893.1,16.14855706]
[1741916649663,6.04e-06,1893.2,1893.1,16.64573291]
[1741916650241,6.04e-06,1893.2,1893.1,22.74293037]
[1741916650447,6.04e-06,1893.2,1893.1,9.4472956]
[1741916650649,6.04e-06,1893.2,1893.1,7.14193746]
[1741916650848,6.04e-06,1893.2,1893.1,7.53037564]
[1741916651688,6.04e-06,1893.2,1893.1,6.88844459]
[1741916651850,6.04e-06,1893.2,1893.1,6.49417818]
[1741916652179,6.04e-06,1893.2,1893.1,6.10574]
[1741916652353,6.04e-06,1893.2,1893.1,7.2973791]
[1741916652554,6.04e-06,1893.2,1893.1,7.35019686]
[1741916652750,6.04e-06,1893.2,1893.1,7.35019324]
[1741916653074,6.04e-06,1893.2,1893.1,7.2973791]
[1741916656063,6.04e-06,1893.2,1893.1,7.35018881]
[1741916656676,6.04e-06,1893.2,1893.1,8.38563567]
[1741916657893,6.04e-06,1893.2,1893.1,8.33282596]
[1741916658598,6.04e-06,1893.2,1893.1,7.50942596]
[1741916659560,6.04e-06,1893.2,1893.1,6.31778686]
[1741916659757,6.04e-06,1893.2,1892.9,5.28285]
[1741916659970,6.04e-06,1893.2,1892.8,6.34877199]
[1741916660204,6.10144,1893.1,1892.7,5.28333]
[1741916661172,6.10144,1893.1,1892.7,10.56652]
[1741916661360,6.10144,1893.1,1892.7,5.28326]
[1741916661691,1.9574696,1893.1,1892.7,5.28326]
[1741916661896,1.9574696,1893.1,1892.8,5.28307]
[1741916661897,0.8191,1893.1,1892.8,5.28307]
[1741916662093,6.10146,1893.1,1892.7,5.28326]
[1741916662395,0.8191,1893.1,1892.7,5.28326]
[1741916662695,6.10156,1893.1,1892.6,5.28356]
[1741916662992,5.28265,1893.0,1892.6,5.28348]
[1741916663586,5.28291,1892.9,1892.5,5.28396]
[1741916663783,5.28323,1892.8,1892.4,5.28413]
[1741916663983,5.28384,1892.6,1892.2,5.2848]
[1741916664183,10.5678,1892.6,1892.2,5.2848]
[1741916664407,0.7926,1892.3,1891.9,5.28549]
[1741916664585,6.07723,1892.3,1892.0,0.528549]
[1741916664899,4.71966283,1892.2,1891.4,5.28681]
[1741916665198,6.07722,1892.3,1892.0,5.2854]
[1741916665199,6.9326,1892.3,1892.0,5.2854]
[1741916665386,6.07717,1892.3,1891.9,5.28562]
[1741916666062,5.28491,1892.2,1891.8,5.28582]
[1741916666266,5.28526,1892.1,1891.7,5.28613]
[1741916666479,5.28491,1892.2,1891.8,5.28596]
[1741916666877,6.07722,1892.3,1891.8,5.28577]
[1741916667078,6.07722,1892.3,1891.9,5.28565]
[1741916667799,5.28487,1892.2,1891.7,5.28619]
[1741916667970,5.28487,1892.2,1891.8,5.28592]
[1741916668170,6.07717,1892.3,1891.8,5.28592]
[1741916668569,6.07717,1892.3,1891.9,5.28566]
[1741916668872,11.36196,1892.3,1891.9,5.28566]
[1741916669094,11.36196,1892.3,1891.8,5.28592]
[1741916669297,5.28492,1892.2,1891.8,5.28592]
[1741916669496,5.28492,1892.2,1891.8,5.28585]
[1741916670503,7.213366,1892.3,1891.8,5.28572]
[1741916670707,12.498206,1892.3,1891.9,5.28566]
[1741916670873,7.213366,1892.3,1891.9,5.28566]
[1741916671075,12.498116,1892.3,1891.9,5.28566]
[1741916671374,12.498086,1892.3,1891.9,5.28566]
[1741916671589,0.7926,1892.3,1891.8,5.28586]
[1741916671793,0.7926,1892.3,1892.0,5.28536]
[1741916671990,0.7926,1892.3,1892.1,5.28501]
[1741916672307,0.7926,1892.3,1892.1,5.28509]
[1741916672806,0.7926,1892.3,1892.0,5.28536]
[1741916673014,0.7926,1892.3,1892.0,10.57065]
[1741916673406,0.7926,1892.3,1892.1,5.28502]
[1741916673610,0.7926,1892.3,1892.2,5.28485]
[1741916674698,12.22777,1892.5,1892.1,5.2851]
[1741916674893,6.9437,1892.5,1892.1,5.28493]
[1741916675211,6.9437,1892.5,1892.2,5.28484]
[1741916675411,5.28434,1892.4,1891.6,6.11098]
[1741916675599,5.28434,1892.4,1891.9,5.28546]
[1741916675796,6.08773,1892.5,1892.0,5.2852]
[1741916675998,5.28442,1892.4,1892.0,5.2852]
[1741916676312,11.37196,1892.5,1892.1,5.28503]
[1741916676513,5.28445,1892.4,1892.0,5.2852]
[1741916676719,5.28457,1892.3,1891.9,5.28558]
[1741916676880,0.8037,1892.5,1892.1,5.28487]
[1741916677079,6.08773,1892.5,1892.1,5.28487]
[1741916677480,6.08773,1892.5,1892.0,5.28541]
[1741916677712,5.2843,1892.4,1892.0,5.28541]
[1741916678009,5.28472,1892.3,1891.9,5.28568]
[1741916678580,10.56954,1892.3,1891.9,5.28568]
[1741916678776,6.09496,1892.2,1891.8,10.57177]
[1741916679023,0.8101,1892.2,1891.9,5.28564]
[1741916679497,0.8101,1892.2,1891.9,6.342685]
[1741916679687,0.8101,1892.2,1892.1,5.28513]
[1741916679882,0.7721,1892.4,1892.1,5.28513]
[1741916680101,0.7721,1892.4,1892.1,10.57014]
[1741916680345,0.7721,1892.4,1892.2,5.28484]
[1741916680701,0.7721,1892.4,1892.1,5.28501]
[1741916681200,6.0564,1892.4,1891.7,6.0405]
[1741916681504,6.0564,1892.4,1891.8,5.89001]
[1741916681505,5.28497,1892.2,1891.8,5.89001]
[1741916682327,5.28459,1892.3,1891.8,0.60405]
[1741916682495,11.34091,1892.4,1892.0,5.28535]
[1741916683141,6.0564,1892.4,1892.0,5.28535]
[1741916683509,6.0564,1892.4,1892.1,5.2851]
[1741916683510,0.7721,1892.4,1892.1,5.2851]
[1741916683714,0.7721,1892.4,1892.1,5.28501]
[1741916684129,6.05639,1892.4,1892.0,5.28534]
[1741916684725,5.28469,1892.3,1891.9,5.28567]
[1741916685735,0.7541,1891.9,1891.6,5.28642]
[1741916685922,0.7541,1891.9,1891.7,5.28617]
[1741916686345,6.03979,1891.9,1891.6,5.28642]
[1741916686547,0.7541,1891.9,1891.7,5.28617]
[1741916686730,0.7541,1891.9,1891.8,5.28597]
[1741916687049,0.7541,1891.9,1891.6,5.28651]
[1741916687412,0.7541,1891.9,1891.7,5.28624]
[1741916688518,0.7541,1891.9,1891.7,10.57233]
[1741916688733,0.7541,1891.9,1891.7,5.28609]
[1741916689555,5.56301655,1892.2,1891.8,5.28597]
[1741916689848,5.56301655,1892.2,1891.9,5.28566]
[1741916690051,5.56301655,1892.2,1892.0,5.28524]
[1741916690257,0.8283,1892.2,1892.0,5.28524]
[1741916690457,0.8283,1892.2,1891.9,5.28568]
[1741916691156,10.84802655,1892.2,1891.8,5.28596]
[1741916691360,5.28527,1892.1,1891.7,5.28611]
[1741916692464,5.28527,1892.1,1891.8,5.28596]
[1741916692645,12.46118721,1892.2,1891.8,5.28596]
[1741916692831,17.74627721,1892.2,1891.8,5.28596]
[1741916693032,5.28519,1892.1,1891.7,5.28611]
[1741916693542,5.28519,1892.1,1891.7,5.28605]
[1741916693855,5.28542,1892.0,1891.6,5.28651]
[1741916694155,6.04092,1891.6,1891.5,0.48869138]
[1741916694358,6.14,1891.9,1891.5,0.48869138]
[1741916694525,5.49531655,1892.2,1891.4,6.07907]
[1741916694728,5.28516,1892.1,1891.7,5.28607]
[1741916695130,0.7606,1892.2,1891.5,0.607907]
[1741916695335,0.7606,1892.2,1891.9,5.28555]
[1741916695562,10.01988655,1892.1,1891.7,5.2861]
[1741916696038,4.73471655,1892.1,1891.7,5.2861]
[1741916696247,4.73471655,1892.1,1891.8,5.28596]
[1741916696759,0.8297,1891.9,1891.6,5.28651]
[1741916696968,5.286,1891.8,1891.4,5.77546999]
[1741916697166,4.73471655,1891.7,1891.4,5.77565999]
[1741916697336,0.7622,1891.6,1891.3,5.28735]
[1741916697726,10.02152655,1891.5,1891.1,5.28792]
[1741916698064,10.02152655,1891.5,1891.1,5.28781]
[1741916698366,5.56191655,1891.3,1891.0,5.28809]
[1741916698549,5.56191655,1891.3,1890.8,0.82897916]
[1741916698787,5.56191655,1891.3,1891.1,10.5754]
[1741916698941,0.8272,1891.3,1891.1,10.5754]
[1741916699134,5.55281655,1891.5,1891.2,5.28764]
[1741916699466,10.83962655,1891.5,1891.1,5.28765]
[1741916700465,5.55281655,1891.5,1890.8,6.06467]
[1741916700657,10.02274655,1891.1,1890.7,5.28898]
[1741916700966,0.8181,1891.2,1890.9,5.28829]
[1741916701329,0.8181,1891.2,1891.0,5.2881]
[1741916701598,13.84672655,1891.4,1891.0,5.28802]
[1741916701763,19.13392655,1891.4,1891.0,5.28802]
[1741916701972,0.8249,1891.4,1891.2,5.2875]
[1741916702175,0.8249,1891.4,1891.2,10.57502]
[1741916702335,0.7509,1891.7,1891.5,5.28665]
[1741916702549,0.7509,1891.7,1891.3,5.28717]
[1741916702747,0.7509,1891.7,1891.3,0.528717]
[1741916702944,4.73471655,1892.0,1891.8,5.28597]
[1741916703149,0.774,1892.1,1891.8,5.28575]
[1741916703651,0.774,1892.1,1891.9,5.28555]
[1741916703843,0.774,1892.3,1892.0,5.28541]
[1741916704055,0.774,1892.3,1892.1,5.28511]
[1741916704255,0.774,1892.3,1892.0,5.28541]
[1741916704688,0.774,1892.3,1892.1,5.285]
[1741916704868,0.774,1892.6,1892.5,5.28401]
[1741916705069,0.774,1892.8,1892.1,5.28513]
[1741916705267,5.50871655,1892.8,1892.0,16.09287291]
[1741916705471,5.50871655,1892.8,1892.5,5.28401]
[1741916705964,0.774,1892.8,1892.6,5.28371]
[1741916706170,0.774,1892.8,1892.5,5.28377]
[1741916706882,10.77356803,1892.8,1892.3,5.28429]
[1741916707379,5.49026803,1892.8,1892.4,10.56827]
[1741916707552,0.774,1892.8,1892.6,5.28361]
[1741916707876,0.774,1892.8,1892.5,5.284]
[1741916708081,10.77364803,1892.8,1892.3,5.28452]
[1741916708281,5.28361,1892.7,1892.2,5.28458]
[1741916708447,0.774,1892.8,1892.4,5.2841]
[1741916708845,0.774,1892.8,1892.5,5.28389]
[1741916709385,0.774,1892.8,1892.5,5.28393]
[1741916709584,0.774,1892.8,1892.5,5.28384]
[1741916710097,7.71626803,1892.9,1892.5,10.56762]
[1741916710282,7.71626803,1892.9,1892.6,5.28366]
[1741916710478,0.8022,1893.0,1892.6,1.10958033]
[1741916710679,9.99821803,1893.3,1892.9,5.28289]
[1741916710884,3.8022,1893.2,1892.9,5.28289]
[1741916711290,0.8022,1893.2,1892.9,5.28289]
[1741916711871,0.8022,1893.2,1892.8,5.28317]
[1741916712171,5.28263,1893.0,1892.5,10.80501]
[1741916712363,6.0841,1892.8,1892.3,5.28431]
[1741916712695,10.00034803,1892.5,1892.0,5.2854]
[1741916712900,10.5689,1892.4,1891.9,5.28568]
[1741916713208,5.28459,1892.3,1891.9,5.28568]
[1741916713396,0.8009,1892.2,1891.9,5.28568]
[1741916713589,0.8009,1892.2,1892.0,5.2853]
[1741916713824,0.8009,1892.2,1891.9,6.47478541]
[1741916714107,0.8009,1892.2,1891.9,11.76034541]
[1741916714465,0.8009,1892.2,1892.0,5.28531]
[1741916715597,0.8116,1892.4,1892.0,5.28519]
[1741916716465,0.8116,1892.4,1891.9,6.47501541]
[1741916716677,6.09602,1892.4,1891.9,6.47479541]
[1741916716961,7.56636936,1892.4,1891.9,5.28546]
[1741916717167,7.56636936,1892.4,1892.0,5.28528]
[1741916717432,12.85091936,1892.4,1892.0,5.28528]
[1741916717697,7.56636936,1892.4,1892.0,5.28528]
[1741916718296,0.8116,1892.4,1892.1,5.28497]
[1741916720814,0.8116,1892.4,1892.2,5.28481]
[1741916722165,0.8116,1892.4,1892.2,10.56948]
[1741916722369,6.8914,1892.6,1892.4,5.28404]
[1741916722569,6.8914,1892.8,1892.5,5.28401]
[1741916722890,27.67426803,1893.1,1892.7,5.28345]
[1741916723066,0.7514,1893.0,1892.7,5.28345]
[1741916723493,0.7514,1893.0,1892.8,5.28301]
[1741916723688,11.42178,1893.3,1892.9,5.28277]
[1741916723689,16.13804803,1893.3,1892.9,5.28277]
[1741916723897,0.8134,1893.4,1892.9,0.05283001]
[1741916724107,0.8134,1893.4,1893.1,5.28223]
[1741916725386,0.8134,1893.4,1893.2,5.28205]
[1741916725915,0.01099333,1893.5,1893.4,5.2815]
[1741916726283,0.01099333,1893.5,1893.2,1.056428]
[1741916726483,0.01099333,1893.5,1893.2,10.56383]
[1741916726683,0.01099333,1893.5,1893.3,5.28157]
[1741916728392,0.01099333,1893.5,1893.1,5.28212]
[1741916728393,0.7593,1893.4,1893.1,5.28212]
[1741916728610,0.7593,1893.4,1893.3,5.28178]
[1741916728916,0.01099333,1893.5,1893.3,10.56337]
[1741916729123,0.01099333,1893.5,1893.3,5.28159]
[1741916729416,0.01099333,1893.5,1893.2,10.56385]
[1741916729718,0.01099333,1893.5,1893.4,5.2815]
[1741916733819,0.01099333,1893.5,1893.3,6.85309122]
[1741916734114,10.78961105,1893.5,1893.1,5.28232]
[1741916734488,10.77861772,1893.5,1893.1,5.28232]
[1741916734724,0.7707,1893.9,1893.6,5.28077]
[1741916734926,10.77757772,1893.9,1893.4,0.7836]
[1741916735224,5.49726772,1893.9,1893.6,5.2809]
[1741916735801,10.77747772,1893.9,1893.5,5.28122]
[1741916736001,5.28045,1893.8,1893.3,5.28171]
[1741916736225,10.00725772,1893.7,1893.3,5.28166]
[1741916737220,15.28813772,1893.7,1893.3,5.28166]
[1741916737420,4.72656772,1893.7,1893.3,5.28158]
[1741916737710,4.72656772,1893.7,1893.3,5.33439245]
[1741916737921,10.00736772,1893.7,1893.3,5.28158]
[1741916738619,4.72656772,1893.7,1893.3,5.28158]
[1741916738788,4.72656772,1893.7,1893.4,5.809618]
[1741916740323,4.72656772,1893.7,1893.3,5.28158]
[1741916740533,4.72656772,1893.7,1893.2,1.341832]
[1741916740534,5.28106,1893.6,1893.2,1.341832]
[1741916740716,5.28106,1893.6,1893.2,5.810092]
[1741916740900,6.05046,1893.6,1893.2,5.810092]
[1741916741100,6.05046,1893.6,1893.2,11.091992]
[1741916741332,6.05046,1893.6,1893.2,5.810092]
[1741916741531,0.7694,1893.6,1893.3,5.2816]
[1741916741826,0.7694,1893.6,1893.4,5.28139]
[1741916742026,4.72656772,1893.7,1893.4,5.28139]
[1741916742427,4.72656772,1893.7,1893.4,10.56271]
[1741916742632,16.95547772,1893.9,1893.5,5.28109]
[1741916742833,11.67536772,1893.9,1893.5,5.28101]
[1741916743030,11.67536772,1893.9,1893.6,5.28093]
[1741916743335,5.53536772,1893.9,1893.6,5.28093]
[1741916743535,5.2804,1893.8,1893.4,5.28149]
[1741916743732,5.2804,1893.8,1893.3,5.8627592]
[1741916743919,4.72656772,1893.7,1893.2,5.28204]
[1741916744242,4.72656772,1893.7,1893.1,5.66946496]
[1741916744243,5.28163,1893.4,1893.1,0.38714496]
[1741916744430,5.28163,1893.4,1893.0,10.56494]
[1741916744933,10.56338,1893.4,1893.0,5.28244]
[1741916745235,4.72656772,1893.3,1893.0,5.28247]
[1741916745432,4.72656772,1893.3,1893.1,5.28233]
[1741916745634,5.28206,1893.2,1892.9,5.28286]
[1741916745820,5.28206,1893.2,1892.9,0.607716]
[1741916746149,0.8078,1893.1,1892.9,0.607716]
[1741916746347,0.8078,1893.1,1892.8,5.28312]
[1741916746836,10.00937772,1893.0,1892.7,0.62030887]
[1741916747011,10.78603772,1892.8,1892.7,0.62030887]
[1741916747217,5.28345,1892.7,1892.6,0.62030887]
[1741916747418,10.01001772,1892.7,1892.6,0.62030887]
[1741916747754,4.72656772,1892.7,1892.6,0.62030887]
[1741916747908,10.01001772,1892.7,1892.6,0.62030887]
[1741916748842,10.01001772,1892.7,1892.3,5.28433]
[1741916748843,4.72656772,1892.7,1892.3,5.28433]
[1741916749020,4.72656772,1892.7,1892.4,5.28425]
[1741916749639,4.72656772,1892.7,1892.3,5.81804738]
[1741916749812,4.72656772,1892.7,1892.1,5.90517887]
[1741916749813,5.28393,1892.6,1892.2,5.28481]
[1741916750537,5.28393,1892.6,1892.1,6.33864425]
[1741916750744,10.01001772,1892.7,1892.2,5.28462]
[1741916751041,4.72656772,1892.7,1892.4,5.28425]
[1741916751433,12.19975,1892.8,1892.4,5.28411]
[1741916751632,17.4832,1892.8,1892.4,5.28411]
[1741916751828,12.1996,1892.8,1892.4,10.56829]
[1741916752221,12.1996,1892.8,1892.4,5.28411]
[1741916752422,6.9163,1892.8,1892.4,5.28411]
[1741916752638,6.9163,1892.8,1892.5,5.28398]
[1741916752810,12.19949,1892.8,1892.4,5.812521]
[1741916753010,12.19949,1892.8,1892.4,5.28411]
[1741916753444,12.19949,1892.8,1892.4,10.56826]
[1741916753744,6.9163,1892.8,1892.5,5.284]
[1741916754415,6.9163,1892.8,1892.5,10.56779]
[1741916754640,6.9163,1892.8,1892.5,5.28379]
[1741916754817,0.7763,1892.8,1892.5,5.28379]
[1741916755226,6.05964,1892.8,1892.4,5.28425]
[1741916755526,10.01014772,1892.7,1892.3,5.28433]
[1741916755921,12.47871849,1892.8,1892.4,5.28428]
[1741916756127,10.78609772,1892.8,1892.4,5.28428]
[1741916756941,10.78609772,1892.8,1892.4,10.56847]
[1741916757136,5.50286772,1892.8,1892.5,5.28399]
[1741916757446,5.50286772,1892.8,1892.6,5.28368]
[1741916757652,5.50286772,1892.8,1892.5,5.28399]
[1741916757948,5.50286772,1892.8,1892.6,5.2837]
[1741916758244,0.7763,1892.8,1892.5,6.340717]
[1741916758749,0.7763,1892.8,1892.5,6.340637]
[1741916758951,6.05949,1892.8,1892.4,5.28422]
[1741916759148,4.72656772,1892.6,1892.2,5.28473]
[1741916759354,4.72656772,1892.6,1892.3,5.28442]
[1741916759965,4.72656772,1892.6,1892.3,10.56876]
[1741916760245,5.50286772,1892.8,1892.5,5.28401]
[1741916761319,5.50286772,1892.8,1892.6,5.2837]
[1741916761520,0.7763,1892.8,1892.5,5.2838]
[1741916761748,0.7763,1892.8,1892.6,5.28365]
[1741916762652,0.7763,1892.8,1892.5,5.2838]
[1741916763265,6.05963,1892.8,1892.4,10.56845]
[1741916763532,0.7763,1892.8,1892.5,5.28396]
[1741916764157,0.7763,1892.8,1892.4,6.27443727]
[1741916764755,6.05955,1892.8,1892.4,6.27443727]
[1741916765363,6.05955,1892.8,1892.4,0.99026727]
[1741916765557,6.05955,1892.8,1892.4,5.28424]
[1741916765753,6.05955,1892.8,1892.5,5.28387]
[1741916765754,0.7763,1892.8,1892.5,5.28387]
[1741916765958,6.14,1892.9,1892.7,5.28319]
[1741916766125,0.7879,1893.3,1892.8,0.528319]
[1741916766326,0.7879,1893.3,1892.9,5.2827]
[1741916766549,0.7879,1893.3,1893.0,5.2825]
[1741916766853,0.7879,1893.3,1892.8,0.05282445]
[1741916767036,0.7879,1893.3,1893.1,5.28219]
[1741916767233,10.70125,1893.5,1892.9,0.7931]
[1741916767234,0.7922,1893.5,1892.9,0.7931]
[1741916767432,10.00724772,1893.7,1893.3,5.28169]
[1741916767638,0.7922,1893.6,1893.4,5.28144]
[1741916767837,0.7922,1893.6,1893.3,5.28164]
[1741916768232,0.7922,1893.6,1893.3,5.892394]
[1741916768563,4.72656772,1893.5,1893.2,5.28205]
[1741916769261,0.7922,1893.6,1893.2,5.28205]
[1741916769464,0.7922,1893.6,1893.2,10.56398]
[1741916769663,0.7922,1893.6,1893.3,5.28174]
[1741916769867,0.7922,1893.6,1893.4,5.28126]
[1741916770030,0.7922,1893.6,1893.2,5.28178]
[1741916770523,0.7922,1893.6,1893.3,5.28171]
[1741916770729,0.7922,1893.6,1893.2,11.13061968]
[1741916772063,0.7922,1893.6,1893.2,5.84870968]
[1741916772430,0.489971,1893.6,1893.2,11.13056968]
[1741916773341,0.489971,1893.6,1893.3,5.28167]
[1741916773536,0.489971,1893.6,1893.4,5.28148]
[1741916773752,4.72656772,1893.7,1893.5,5.28122]
[1741916773942,4.72656772,1893.7,1893.4,5.2815]
[1741916774642,4.72656772,1893.5,1893.1,5.6697255]
[1741916774832,4.72656772,1893.3,1892.8,2.49960848]
[1741916775032,10.00838772,1893.3,1892.8,7.02699848]
[1741916775355,10.00945772,1892.9,1892.8,1.74390848]
[1741916775535,13.80705772,1892.9,1892.8,1.74390848]
[1741916775736,19.94705772,1892.9,1892.8,1.74390848]
[1741916776452,5.28373,1892.6,1892.2,5.28459]
[1741916776655,5.52416772,1892.5,1892.2,5.28484]
[1741916776855,5.52416772,1892.5,1892.2,10.56951]
[1741916777054,5.52416772,1892.5,1892.3,5.28457]
[1741916777567,5.52416772,1892.5,1892.2,5.28467]
[1741916777763,5.52416772,1892.5,1892.2,10.56935]
[1741916777967,4.72656772,1892.7,1892.3,5.28457]
[1741916778166,4.72656772,1892.5,1892.2,1.133115]
[1741916778334,15.28457524,1892.7,1892.2,11.702645]
[1741916778534,10.00093524,1892.7,1892.3,5.28453]
[1741916778781,10.00093524,1892.7,1891.9,0.62113146]
[1741916778782,0.793,1892.4,1891.9,0.62113146]
[1741916778935,6.07743,1892.4,1891.9,5.90665146]
[1741916779139,6.07743,1892.4,1891.9,5.90662146]
[1741916779680,10.00219524,1892.3,1891.9,0.62113146]
[1741916779880,5.28498,1892.2,1891.9,0.62113146]
[1741916780171,10.00218524,1892.3,1891.9,0.62113146]
[1741916780407,11.08170376,1892.3,1891.9,5.90681146]
[1741916780744,16.36640376,1892.3,1891.9,0.62113146]
[1741916780944,5.28487,1892.2,1891.6,6.03907]
[1741916781149,0.792,1892.0,1891.6,10.57265]
[1741916781410,0.792,1892.0,1891.6,5.28627]
[1741916781574,6.07742,1892.0,1891.5,5.28675]
[1741916781787,6.07742,1892.0,1891.5,6.422837]
[1741916781942,0.792,1892.0,1891.7,5.28607]
[1741916782261,6.07761,1892.0,1891.5,6.423057]
[1741916782568,10.00330524,1891.9,1891.4,5.28682]
[1741916782873,10.00330524,1891.9,1891.5,0.3885538]
[1741916782874,5.28598,1891.8,1891.5,0.3885538]
[1741916783075,10.79491524,1892.0,1891.5,0.3885538]